Workbook

Sheet Реестр
A3: Товар | B3: Клиент | C3: Дата счета | D3: номер счета | Q3: Дата отгрузки | R3: № транс. Средства | S3: Склад
A4: Товар2 | B4: Клиент4 | C4: 2019-10-11 | D4: 23 | Q4: 21,22.10.2019 | R4: ВP 7651 СК / ВT 5461 ХМ | S4: склад2
A5: Товар3 | B5: Клиент7 | C5: 2019-11-04 | D5: 45 | Q5: 2019-11-05 | R5: СP 5689 FА / СВ 3886 ХТ ; СА 5896 ВС / СГ 2356 ХХ | S5: склад3
A6: Товар4 | B6: Клиент7 | C6: 2019-11-04 | D6: 48 | Q6: 2019-11-05 | R6: СА 5896 ВС / СГ 2356 ХХ | S6: склад3
A9: Выделяем одну или несколько ячеек и жмем кнопку "Копировать" и данные переносим на Лист ("Отчет").
A11: Как при копировании сохранить форматы(шрифт и границы) и что бы добавить на лист "Отчет" дополнительные данные в таблицу.(Дата и Операция)

Sheet Отчет
B2: Отчет по отгрузкам
A3: Дата отгрузки | B3: Товар | C3: Операция | D3: Склад | G3: Клиент | J3: № транс. Средства | L3: номер счета
B4: Товар2 | D4: склад2 | G4: Клиент4 | J4: ВP 7651 СК / ВT 5461 ХМ | L4: 23
B5: Товар3 | D5: склад3 | G5: Клиент7 | J5: СP 5689 FА / СВ 3886 ХТ ; СА 5896 ВС / СГ 2356 ХХ | L5: 45
A6: 2019-11-26 | B6: Товар4 | C6: Расход | D6: склад3 | G6: Клиент7 | J6: СА 5896 ВС / СГ 2356 ХХ | L6: 48
A8: Добавить - Дата Сегодня | C8: добавить Слово "Расход"

Sheet Реестр (2) (hidden)
A3: Назва товару | B3: Постачальник | C3: Покупець | D3: Дата счета | E3: номер счета | F3: Дата договора | G3: Номер договора | H3: Кіл-сть (дог. ± факт), т. | I3: Ціна, грн./т. | J3: Сума, грн. | K3: Оплачено, грн. | L3: Оплачено,тн | M3: Дата оплати | N3: Дод. витрати, грн. | O3: Поточне сальдо, грн. | P3: Факт. постав., т. | Q3: Факт.Отгружено на сумму,грн | R3: Дата отгрузки | S3: № транс. Средства ваг/авто | T3: Склад отгрузки | U3: Статус отгрузки | V3: Ответственний | W3: Примітки
A4: ДОБРИВО KaliyMag-Agro gran | C4: ТОВ "ПРОМІНЬ" | D4: 2019-10-11 | E4: 237 | H4: 60.35 | I4: 8600.004 | J4: =H4*I4 -> 519010.2414 | K4: =519010.24+255850.12 -> 774860.36 | L4: =K4/I4 -> 90.09999995 | M4: 2019-10-17 | O4: =P4*I4-K4 -> -255850.1186 | P4: =4.25+39.95+16.15 -> 60.35 | Q4: =P4*I4 -> 519010.2414 | R4: 21,22.10.2019 | S4: ВІ 7651 СК / ВІ 5561 ХМ; СВ 7205 ВВ / СВ 7754 ХТ ; СВ 7957 ВВ / СВ 7843 ХТ | T4: Бахмач | U4: =IF(A4="","-",IF(M4="","запланировано",IF(P4="","не отгружено",IF(OR(L4>P4,L4<H4),"частично отгружено",IF(L4<P4,"перегружено","отгружено"))))) -> частично отгружено
A5: ДОБРИВО KaliyMag-Agro gran | C5: ТОВ "УКРАЇНСЬКА АГРОПРОМИСЛОВА Група" | D5: 2019-11-04 | E5: 255 | H5: 85 | I5: 8690.4 | J5: 738684 | K5: =369342+369342 -> 738684 | L5: =K5/I5 -> 85 | M5: 2019-11-06 | O5: =P5*I5-K5 -> -369342 | P5: =21.25*2 -> 42.5 | Q5: =P5*I5 -> 369342 | R5: 2019-11-05 | S5: СВ 4729 ВА / СВ 3886 ХТ ; СВ 6023 ВС / СВ 8778 ХТ | T5: Бахмач | U5: =IF(A5="","-",IF(M5="","запланировано",IF(P5="","не отгружено",IF(OR(L5>P5,L5<H5),"частично отгружено",IF(L5<P5,"перегружено","отгружено"))))) -> частично отгружено
A6: Добриво мінеральне гранульоване "GRANFOSKA PK 12-18+ME" | C6: ФГ Мотика | D6: 2019-11-04 | E6: 256 | H6: 22 | I6: 8000.004 | J6: 176000.09 | K6: 176000.09 | L6: =K6/I6 -> 22.00000025 | M6: 2019-11-05 | O6: =P6*I6-K6 -> -176000.09 | Q6: =P6*I6 -> 0 | T6: Мала Дівиця | U6: =IF(A6="","-",IF(M6="","запланировано",IF(P6="","не отгружено",IF(OR(L6>P6,L6<H6),"частично отгружено",IF(L6<P6,"перегружено","отгружено"))))) -> не отгружено
A7: Добриво мінеральне фосфорне-фосфоритне борошно марка "А"(УКТ ЗЕД 3103 90 00 00) | C7: ТОВ "Хімагростеп" | D7: 2019-11-05 | E7: 257 | H7: 5 | I7: 4200 | J7: =H7*I7 -> 21000 | K7: 21000 | L7: 5 | M7: 2019-11-05 | O7: =P7*I7-K7 -> 0 | P7: 5 | Q7: =P7*I7 -> 21000 | R7: 2019-11-05 | S7: ***** | T7: Черкаси | U7: =IF(A7="","-",IF(M7="","запланировано",IF(P7="","не отгружено",IF(OR(L7>P7,L7<H7),"частично отгружено",IF(L7<P7,"перегружено","отгружено"))))) -> отгружено
A8: Добриво мінеральне фосфорне-фосфоритне борошно марка "А"(УКТ ЗЕД 3103 90 00 00) | C8: ТОВ-фірма "Агрохімпак-фірма" | D8: 2019-11-06 | E8: 259 | H8: 5 | I8: 4440 | J8: 22200 | L8: =K8/I8 -> 0 | O8: =P8*I8-K8 -> 0 | Q8: =P8*I8 -> 0 | T8: Бахмач | U8: запланировано
